Workbook

Sheet Лист2
J2: Приложение № 2 к муниципальной программе "Развитие образования,культуры, спорта и молодежной политики в Камышловском городском округе до 2020 года" от 30.04.2019 года № 385 г. Камышлов
A3: ПЛАН МЕРОПРИЯТИЙ по выполнению муниципальной программы Развитие образования, культуры, спорта и молодежной политики в Камышловском городском округе
A5: № строки | B5: Наименование мероприятия/ Источники расходов на финансирование | C5: Объем расходов на выполнение мероприятия за счет всех источников ресурсного обеспечения, рублей | K5: Номер строки целевых показателей, на достижение которых направлены мероприятия
C6: всего | D6: 2014 | E6: 2015 | F6: 2016 | G6: 2017 | H6: 2018 | I6: 2019 | J6: 2020
A7: 1 | B7: 2 | C7: 3 | D7: 4 | E7: 5 | F7: 6 | G7: 7 | H7: 8 | I7: 9 | J7: 10 | K7: 11
B8: ВСЕГО ПО МУНИЦИПАЛЬНОЙ ПРОГРАММЕ, В ТОМ ЧИСЛЕ | C8: =SUM(C9:C12) -> 3879449304 | D8: =SUM(D9:D12) -> 458775148 | E8: =SUM(E9:E12) -> 497655320 | F8: =SUM(F9:F12) -> 516861700 | G8: =SUM(G9:G12) -> 545338707 | H8: =SUM(H9:H12) -> 634514047.5 | I8: =SUM(I9:I12)N11 ->  | J8: =SUM(J9:J12) -> 613565845
A9: =A8+1 -> 1 | B9: федеральный бюджет | C9: =SUM(D9:J9) -> 1728000 | D9: =D23+D113+D228+D284+D361+D410+D470+D501+D536+D586+D610+D642+D674+D706 -> 405200 | E9: =E23+E113+E228+E284+E361+E410+E470+E501+E536+E586+E610+E642+E674+E706 -> 1322800 | F9: =F23+F113+F228+F284+F361+F410+F470+F501+F536+F586+F610+F642+F674+F706 -> 0 | G9: =G23+G113+G228+G284+G361+G410+G470+G501+G536+G586+G610+G642+G674+G706+G735 -> 0 | H9: =H23+H113+H228+H284+H361+H410+H470+H501+H536+H586+H610+H642+H674+H706+H735 -> 0 | I9: =I23+I113+I228+I284+I361+I410+I470+I501+I536+I586+I610+I642+I674+I706+I735 -> 0 | J9: =J23+J113+J228+J284+J361+J410+J470+J501+J536+J586+J610+J642+J674+J706+J735 -> 0
A10: =A9+1 -> 2 | B10: областной бюджет | C10: =SUM(D10:J10) -> 1942821866 | D10: =D24+D114+D229+D285+D362+D411+D471+D502+D537+D587+D611+D643+D675+D707 -> 207112848 | E10: =E24+E114+E229+E285+E362+E411+E471+E502+E537+E587+E611+E643+E675+E707 -> 228896700 | F10: =F24+F114+F229+F285+F362+F411+F471+F502+F537+F587+F611+F643+F675+F707 -> 279592700 | G10: =G24+G114+G229+G285+G362+G411+G471+G502+G537+G587+G611+G643+G675+G707+G736 -> 287032700 | H10: =H24+H114+H229+H285+H362+H411+H471+H502+H537+H587+H611+H643+H675+H707+H736 -> 318355717.5 | I10: =I24+I114+I229+I285+I362+I411+I471+I502+I537+I587+I611+I643+I675+I707+I736 -> 316450900 | J10: =J24+J114+J229+J285+J362+J411+J471+J502+J537+J587+J611+J643+J675+J707+J736 -> 305380300
A11: =A10+1 -> 3 | B11: местный бюджет | C11: =SUM(D11:J11) -> 1934899439 | D11: =D25+D115+D230+D286+D363+D412+D472+D503+D538+D588+D612+D644+D676+D708 -> 251257100 | E11: =E25+E115+E230+E286+E363+E412+E472+E503+E538+E588+E612+E644+E676+E708 -> 267435820 | F11: =F25+F115+F230+F286+F363+F412+F472+F503+F538+F588+F612+F644+F676+F708 -> 237269000 | G11: =G25+G115+G230+G286+G363+G412+G472+G503+G538+G588+G612+G644+G676+G708+G737 -> 258306007 | H11: =H25+H115+H230+H286+H363+H412+H472+H503+H538+H588+H612+H644+H676+H708+H737 -> 316158330 | I11: =I25+I115+I230+I286+I363+I412+I472+I503+I538+I588+I612+I644+I676+I708+I737 -> 296287636.8 | J11: =J25+J115+J230+J286+J363+J412+J472+J503+J538+J588+J612+J644+J676+J708+J737 -> 308185545
A12: =A11+1 -> 4 | B12: внебюджетные источники | C12: =SUM(D12:J12) -> 0 | D12: =D26+D116+D231+D287+D364+D413+D473+D504+D539+D589+D613+D645+D677+D709 -> 0 | E12: =E26+E116+E231+E287+E364+E413+E473+E504+E539+E589+E613+E645+E677+E709 -> 0 | F12: =F26+F116+F231+F287+F364+F413+F473+F504+F539+F589+F613+F645+F677+F709 -> 0 | G12: =G26+G116+G231+G287+G364+G413+G473+G504+G539+G589+G613+G645+G677+G709+G738 -> 0 | H12: =H26+H116+H231+H287+H364+H413+H473+H504+H539+H589+H613+H645+H677+H709+H738 -> 0 | I12: =I26+I116+I231+I287+I364+I413+I473+I504+I539+I589+I613+I645+I677+I709+I738 -> 0 | J12: =J26+J116+J231+J287+J364+J413+J473+J504+J539+J589+J613+J645+J677+J709+J738 -> 0
J15: Приложение № 2.1 к муниципальной программе "Развитие образования,культуры, спорта и молодежной политики в Камышловском городском округе до 2020 года" от 30.04.2019 года № 385 г. Камышлов
A16: ПЛАН МЕРОПРИЯТИЙ по выполнению подпрограммы Развитие системы дошкольного образования в Камышловском городском округе
A19: № строки | B19: Наименование мероприятия/ Источники расходов на финансирование | C19: Объем расходов на выполнение мероприятия за счет всех источников ресурсного обеспечения, рублей | K19: Номер строки целевых показателей, на достижение которых направлены мероприятия
C20: всего | D20: 2014 | E20: 2015 | F20: 2016 | G20: 2017 | H20: 2018 | I20: 2019 | J20: 2020
A21: 1 | B21: 2 | C21: 3 | D21: 4 | E21: 5 | F21: 6 | G21: 7 | H21: 8 | I21: 9 | J21: 10 | K21: 11
B22: ВСЕГО ПО МУНИЦИПАЛЬНОЙ ПОДПРОГРАММЕ, В ТОМ ЧИСЛЕ | C22: =SUM(C23:C26) -> 1359594611 | D22: =SUM(D23:D26) -> 155472427 | E22: =SUM(E23:E26) -> 170275483.9 | F22: =SUM(F23:F26) -> 185448522 | G22: =SUM(G23:G26) -> 193736319 | H22: =SUM(H23:H26) -> 211983364.8 | I22: =SUM(I23:I26) -> 215741187 | J22: =SUM(J23:J26) -> 226937307
A23: =A22+1 -> 1 | B23: федеральный бюджет | D23: =D31 -> 0 | E23: =E31 -> 0 | F23: =F31 -> 0 | G23: =G31 -> 0 | H23: =H31 -> 0 | I23: =I31 -> 0 | J23: =J31 -> 0
A24: =A23+1 -> 2 | B24: областной бюджет | C24: =SUM(D24:J24) -> 812198847 | D24: =D32 -> 76125000 | E24: =E32 -> 85707000 | F24: =F32 -> 117264800 | G24: =G32 -> 123403447 | H24: =H32 -> 130475700 | I24: =I32 -> 136323500 | J24: =J32 -> 142899400
A25: =A24+1 -> 3 | B25: местный бюджет | C25: =SUM(D25:J25) -> 547395763.8 | D25: =D33 -> 79347427 | E25: =E33 -> 84568483.94 | F25: =F33 -> 68183722 | G25: =G33 -> 70332872 | H25: =H33 -> 81507664.85 | I25: =I33 -> 79417687 | J25: =J33 -> 84037907
A26: =A25+1 -> 4 | B26: внебюджетные источники
B29: Прочие нужды
B30: Всего по направлению "Прочие нужды", в том числе | C30: =SUM(C31:C34) -> 1359594611 | D30: =SUM(D31:D34) -> 155472427 | E30: =SUM(E31:E34) -> 170275483.9 | F30: =SUM(F31:F34) -> 185448522 | G30: =SUM(G31:G34) -> 193736319 | H30: =SUM(H31:H34) -> 211983364.8 | I30: =SUM(I31:I34) -> 215741187 | J30: =SUM(J31:J34) -> 226937307
A31: =A30+1 -> 1 | B31: федеральный бюджет | C31: =SUM(D31:J31) -> 0 | D31: =D36+D41+D46+D51+D56+D61+D66+D71+D76 -> 0 | E31: =E36+E41+E46+E51+E56+E61+E66+E71+E76+E81+E91 -> 0 | F31: =F36+F41+F46+F51+F56+F61+F66+F71+F76+F81+F91+F86 -> 0 | G31: =G36+G41+G46+G51+G56+G61+G66+G71+G76+G81+G91+G86 -> 0 | H31: =H36+H41+H46+H51+H56+H61+H66+H71+H76+H81+H91+H86 -> 0 | I31: =I36+I41+I46+I51+I56+I61+I66+I71+I76+I81+I91+I86+I96+I101 -> 0 | J31: =J36+J41+J46+J51+J56+J61+J66+J71+J76+J81+J91+J86+J96+J101 -> 0
A32: =A31+1 -> 2 | B32: областной бюджет | C32: =SUM(D32:J32) -> 812198847 | D32: =D37+D42+D47+D52+D57+D62+D72+D67+D77 -> 76125000 | E32: =E37+E42+E47+E52+E57+E62+E72+E67+E77+E82+E92 -> 85707000 | F32: =F37+F42+F47+F52+F57+F62+F67+F72+F77+F82+F92+F87 -> 117264800 | G32: =G37+G42+G47+G52+G57+G62+G67+G72+G77+G82+G92+G87 -> 123403447 | H32: =H37+H42+H47+H52+H57+H62+H67+H72+H77+H82+H92+H87+H97 -> 130475700 | I32: =I37+I42+I47+I52+I57+I62+I67+I72+I77+I82+I92+I87+I97+I102 -> 136323500 | J32: =J37+J42+J47+J52+J57+J62+J67+J72+J77+J82+J92+J87+J97+J102 -> 142899400
A33: =A32+1 -> 3 | B33: местный бюджет | C33: =SUM(D33:J33) -> 547395763.8 | D33: =D38+D43+D48+D53+D58+D63+D68+D73+D78 -> 79347427 | E33: =E38+E43+E48+E53+E58+E63+E73+E68+E78+E83+E93 -> 84568483.94 | F33: =F38+F43+F48+F53+F58+F63+F68+F73+F78+F83+F93+F88 -> 68183722 | G33: =G38+G43+G48+G53+G58+G63+G68+G73+G78+G83+G93+G88 -> 70332872 | H33: =H38+H43+H48+H53+H58+H63+H68+H73+H78+H83+H93+H88+H98 -> 81507664.85 | I33: =I38+I43+I48+I53+I58+I63+I68+I73+I78+I83+I93+I88+I98+I103 -> 79417687 | J33: =J38+J43+J48+J53+J58+J63+J68+J73+J78+J83+J93+J88+J98+J103 -> 84037907
A34: =A33+1 -> 4 | B34: внебюджетные источники
B35: Мероприятие 1. Обеспечение государственных гарантий реализации прав на получение общедоступного и бесплатного дошкольного образования, создание условий для присмотра и ухода за детьми, содержания детей в муниципальных дошкольных образовательных учреждениях | C35: =SUM(C36:C39) -> 508523153 | D35: =SUM(D36:D39) -> 72704767 | E35: =SUM(E36:E39) -> 83868483.94 | F35: =SUM(F36:F39) -> 62948722 | G35: =SUM(G36:G39) -> 66070631 | H35: =SUM(H36:H39) -> 70434348.03 | I35: =SUM(I36:I39) -> 73343653 | J35: =SUM(J36:J39) -> 79152548 | K35: 4-9
A36: 1 | B36: федеральный бюджет | C36: =SUM(D36:J36) -> 0
A37: 2 | B37: областной бюджет | C37: =SUM(D37:J37) -> 0
A38: 3 | B38: местный бюджет | C38: =SUM(D38:J38) -> 508523153 | D38: 72704767 | E38: 83868483.94 | F38: 62948722 | G38: 66070631 | H38: 70434348.03 | I38: 73343653 | J38: 79152548
A39: 4 | B39: внебюджетные источники | C39: =SUM(D39:J39) -> 0
B40: Мероприятие 2. Мероприятия по укреплению и развитию материально-технической базы муниципальных дошкольных образовательных учреждений | C40: =SUM(C41:C44) -> 8373089.86 | D40: =SUM(D41:D44) -> 5542662 | E40: =SUM(E41:E44) -> 200000 | F40: =SUM(F41:F44) -> 369869 | G40: =SUM(G41:G44) -> 300000 | H40: =SUM(H41:H44) -> 1684108.86 | I40: =SUM(I41:I44) -> 276450 | J40: =SUM(J41:J44) -> 0 | K40: 4-9
A41: =A40+1 -> 1 | B41: федеральный бюджет | C41: =SUM(D41:J41) -> 0
A42: =A41+1 -> 2 | B42: областной бюджет | C42: =SUM(D42:J42) -> 0
A43: 3 | B43: местный бюджет | C43: =SUM(D43:J43) -> 8373089.86 | D43: 5542662 | E43: 200000 | F43: 369869 | G43: 300000 | H43: 1684108.86 | I43: 276450
A44: 4 | B44: внебюджетные источники | C44: =SUM(D44:J44) -> 0
B45: Мероприятие 3. Финансирование расходов, связанных с воспитанием и обучением детей-инвалидов дошкольного возраста, проживающих в Свердловской области, на дому, в образовательных организациях дошкольного образования | C45: =SUM(C46:C49) -> 0 | D45: =SUM(D46:D49) -> 0 | E45: =SUM(E46:E49) -> 0 | F45: =SUM(F46:F49) -> 0 | G45: =SUM(G46:G49) -> 0 | H45: =SUM(H46:H49) -> 0 | I45: =SUM(I46:I49) -> 0 | J45: =SUM(J46:J49) -> 0 | K45: 4-9
A46: =A45+1 -> 1 | B46: федеральный бюджет | C46: =SUM(D46:J46) -> 0
A47: =A46+1 -> 2 | B47: областной бюджет | C47: =SUM(D47:J47) -> 0 | H47: 0 | I47: 0
A48: 3 | B48: местный бюджет | C48: =SUM(D48:J48) -> 0
A49: 4 | B49: внебюджетные источники | C49: =SUM(D49:J49) -> 0
B50: Мероприятие 4. Капитальный ремонт, приведение в соответствие с требованиями пожарной безопасности и санитарного законодательства зданий и помещений, в которых размещаются муниципальные дошкольные учреждения | C50: =SUM(C51:C54) -> 17052449.82 | D50: =SUM(D51:D54) -> 943379 | E50: =SUM(E51:E54) -> 500000 | F50: =SUM(F51:F54) -> 4865131 | G50: =SUM(G51:G54) -> 1620000 | H50: =SUM(H51:H54) -> 5173939.82 | I50: =SUM(I51:I54) -> 1950000 | J50: =SUM(J51:J54) -> 2000000
A51: =A50+1 -> 1 | B51: федеральный бюджет | C51: =SUM(D51:J51) -> 0
A52: =A51+1 -> 2 | B52: областной бюджет | C52: =SUM(D52:J52) -> 0 | J52: 0
A53: 3 | B53: местный бюджет | C53: =SUM(D53:J53) -> 17052449.82 | D53: 943379 | E53: 500000 | F53: 4865131 | G53: 1620000 | H53: 5173939.82 | I53: 1950000 | J53: 2000000
A54: 4 | B54: внебюджетные источники | C54: =SUM(D54:J54) -> 0
B55: Мероприятие 5 Финансовое обеспечение государственных гарантий реализации прав на получение общедоступного и бесплатного дошкольного образования в муниципальных дошкольных образовательных организациях в части финансирования расходов на оплату труда работников дошкольных образовательных организаций | C55: =SUM(C56:C59) -> 776217000 | D55: =SUM(D56:D59) -> 64621000 | E55: =SUM(E56:E59) -> 84173000 | F55: =SUM(F56:F59) -> 115433800 | G55: =SUM(G56:G59) -> 118348000 | H55: =SUM(H56:H59) -> 125259200 | I55: =SUM(I56:I59) -> 131050000 | J55: =SUM(J56:J59) -> 137332000
A56: =A55+1 -> 1 | B56: федеральный бюджет | C56: =SUM(D56:J56) -> 0
A57: =A56+1 -> 2 | B57: областной бюджет | C57: =SUM(D57:J57) -> 776217000 | D57: 64621000 | E57: 84173000 | F57: 115433800 | G57: 118348000 | H57: 125259200 | I57: 131050000 | J57: 137332000
A58: 3 | B58: местный бюджет | C58: =SUM(D58:J58) -> 0
A59: 4 | B59: внебюджетные источники | C59: =SUM(D59:J59) -> 0
B60: Мероприятие 6 Финансовое обеспечение государственных гарантий реализации прав на получение общедоступного и бесплатного дошкольного образования в муниципальных дошкольных образовательных организациях в части финансирования расходов на приобретение учебников и учебных пособий, средств обучения, игр, игрушек | C60: =SUM(C61:C64) -> 12412000 | D60: =SUM(D61:D64) -> 1266000 | E60: =SUM(E61:E64) -> 1534000 | F60: =SUM(F61:F64) -> 1831000 | G60: =SUM(G61:G64) -> 1838000 | H60: =SUM(H61:H64) -> 1918000 | I60: =SUM(I61:I64) -> 1975000 | J60: =SUM(J61:J64) -> 2050000
A61: =A60+1 -> 1 | B61: федеральный бюджет | C61: =SUM(D61:J61) -> 0
A62: =A61+1 -> 2 | B62: областной бюджет | C62: =SUM(D62:J62) -> 12412000 | D62: 1266000 | E62: 1534000 | F62: 1831000 | G62: 1838000 | H62: 1918000 | I62: 1975000 | J62: 2050000
A63: 3 | B63: местный бюджет | C63: =SUM(D63:J63) -> 0
A64: 4 | B64: внебюджетные источники | C64: =SUM(D64:J64) -> 0
B65: Мероприятие 7 Мероприятия по энергосбережению | C65: =SUM(C66:C69) -> 156619 | D65: =SUM(D66:D69) -> 156619 | E65: =SUM(E66:E69) -> 0 | F65: =SUM(F66:F69) -> 0 | G65: =SUM(G66:G69) -> 0 | H65: =SUM(H66:H69) -> 0 | I65: =SUM(I66:I69) -> 0 | J65: =SUM(J66:J69) -> 0
A66: =A65+1 -> 1 | B66: федеральный бюджет | C66: =SUM(D66:J66) -> 0
A67: =A66+1 -> 2 | B67: областной бюджет | C67: =SUM(D67:J67) -> 0
A68: 3 | B68: местный бюджет | C68: =SUM(D68:J68) -> 156619 | D68: 156619
A69: 4 | B69: внебюджетные источники | C69: =SUM(D69:J69) -> 0
B70: Мероприятие 8 Содержание вводимых в 2014 году дополнительных мест в муниципальных системах дошкольного образования | C70: =SUM(C71:C74) -> 10238000 | D70: =SUM(D71:D74) -> 10238000 | E70: =SUM(E71:E74) -> 0 | F70: =SUM(F71:F74) -> 0 | G70: =SUM(G71:G74) -> 0 | H70: =SUM(H71:H74) -> 0 | I70: =SUM(I71:I74) -> 0 | J70: =SUM(J71:J74) -> 0
A71: 1 | B71: федеральный бюджет | C71: =SUM(D71:J71) -> 0
A72: 2 | B72: областной бюджет | C72: =SUM(D72:J72) -> 10238000 | D72: 10238000
A73: 3 | B73: местный бюджет | C73: =SUM(D73:J73) -> 0
A74: 4 | B74: внебюджетные источники | C74: =SUM(D74:J74) -> 0
B75: Мероприятие 9 Обеспечение доступности приоритетных объектов и услуг в приоритетных сферах жизнедеятельности инвалидов и других маломобильных групп населения | C75: =SUM(C76:C79) -> 0 | D75: =SUM(D76:D79) -> 0 | E75: =SUM(E76:E79) -> 0 | F75: =SUM(F76:F79) -> 0 | G75: =SUM(G76:G79) -> 0 | H75: =SUM(H76:H79) -> 0 | I75: =SUM(I76:I79) -> 0 | J75: =SUM(J76:J79) -> 0
A76: 1 | B76: федеральный бюджет | C76: =SUM(D76:J76) -> 0
A77: 2 | B77: областной бюджет | C77: =SUM(D77:J77) -> 0
A78: 3 | B78: местный бюджет | C78: =SUM(D78:J78) -> 0 | F78: 0
A79: 4 | B79: внебюджетные источники | C79: =SUM(D79:J79) -> 0
B80: Мероприятие 10 Финансовое обеспечение государственных гарантий реализации прав на получение общедоступного и бесплатного дошкольного, начального общего, основного общего, среднего общего образования в муниципальных общеобразовательных организациях и финансовое обеспечение дополнительного образования детей в муниципальных общеобразовательных организациях в части финансирования расходов на оплату труда работников общеобразовательных организаций | C80: =SUM(C81:C84) -> 13118147 | D80: =SUM(D81:D84) -> 0 | E80: =SUM(E81:E84) -> 0 | F80: =SUM(F81:F84) -> 0 | G80: =SUM(G81:G84) -> 3173447 | H80: =SUM(H81:H84) -> 3243600 | I80: =SUM(I81:I84) -> 3243600 | J80: =SUM(J81:J84) -> 3457500
A81: 1 | B81: федеральный бюджет | C81: =SUM(D81:J81) -> 0
A82: 2 | B82: областной бюджет | C82: =SUM(D82:J82) -> 13118147 | G82: 3173447 | H82: 3243600 | I82: 3243600 | J82: 3457500
A83: 3 | B83: местный бюджет | C83: =SUM(D83:J83) -> 0
A84: 4 | B84: внебюджетные источники | C84: =SUM(D84:J84) -> 0
B85: Мероприятие 11 Финансовое обеспечение государственных гарантий реализации прав на получение общедоступного и бесплатного дошкольного, начального общего, основного общего, среднего общего образования в муниципальных общеобразовательных организациях и финансовое обеспечение дополнительного образования детей в муниципальных общеобразовательных организациях в части финансирования расходов на приобритение учебников и учебных пособий, средств обучения, игр, игрушек | C85: =SUM(C86:C89) -> 213700 | D85: =SUM(D86:D89) -> 0 | E85: =SUM(E86:E89) -> 0 | F85: =SUM(F86:F89) -> 0 | G85: =SUM(G86:G89) -> 44000 | H85: =SUM(H86:H89) -> 54900 | I85: =SUM(I86:I89) -> 54900 | J85: =SUM(J86:J89) -> 59900
A86: 1 | B86: федеральный бюджет | C86: =SUM(D86:J86) -> 0
A87: 2 | B87: областной бюджет | C87: =SUM(D87:J87) -> 213700 | G87: 44000 | H87: 54900 | I87: 54900 | J87: 59900
A88: 3 | B88: местный бюджет | C88: =SUM(D88:J88) -> 0 | F88: 0
A89: 4 | B89: внебюджетные источники | C89: =SUM(D89:J89) -> 0
B90: Мероприятие 12 Обеспечение государственных гарантий реализации прав на получение общедоступного и бесплатного дошкольного образования, создание условий для присмотра и ухода за детьми, содержания детей в муниципальных общеобразовательных учреждениях. | C90: =SUM(C91:C94) -> 10668761 | D90: =SUM(D91:D94) -> 0 | E90: =SUM(E91:E94) -> 0 | F90: =SUM(F91:F94) -> 0 | G90: =SUM(G91:G94) -> 2342241 | H90: =SUM(H91:H94) -> 2693577 | I90: =SUM(I91:I94) -> 2747584 | J90: =SUM(J91:J94) -> 2885359
A91: 1 | B91: федеральный бюджет | C91: =SUM(D91:J91) -> 0
A92: 2 | B92: областной бюджет | C92: =SUM(D92:J92) -> 0
A93: 3 | B93: местный бюджет | C93: =SUM(D93:J93) -> 10668761 | F93: 0 | G93: 2342241 | H93: 2693577 | I93: 2747584 | J93: 2885359
A94: 4 | B94: внебюджетные источники | C94: =SUM(D94:J94) -> 0
B95: Мероприятие 13 Мероприятия, направленные на устранение, выявленных органами государственного надзора в результате проверок в муниципальных учреждениях | C95: =SUM(C96:C99) -> 1521691.14 | D95: =SUM(D96:D99) -> 0 | E95: =SUM(E96:E99) -> 0 | F95: =SUM(F96:F99) -> 0 | G95: =SUM(G96:G99) -> 0 | H95: =SUM(H96:H99) -> 1521691.14 | I95: =SUM(I96:I99) -> 0 | J95: =SUM(J96:J99) -> 0
A96: 1 | B96: федеральный бюджет | C96: =SUM(D96:J96) -> 0
A97: 2 | B97: областной бюджет | C97: =SUM(D97:J97) -> 0 | H97: 0
A98: 3 | B98: местный бюджет | C98: =SUM(D98:J98) -> 1521691.14 | F98: 0 | G98: 0 | H98: 1521691.14 | I98: 0 | J98: 0
A99: 4 | B99: внебюджетные источники | C99: =SUM(D99:J99) -> 0
B100: Мероприятие 14 Мероприятия, направленные на обеспечение антитеррористической безопасности учреждений дошкольного образования | C100: =SUM(C101:C104) -> 1100000 | D100: =SUM(D101:D104) -> 0 | E100: =SUM(E101:E104) -> 0 | F100: =SUM(F101:F104) -> 0 | G100: =SUM(G101:G104) -> 0 | H100: =SUM(H101:H104) -> 0 | I100: =SUM(I101:I104) -> 1100000 | J100: =SUM(J101:J104) -> 0
A101: 1 | B101: федеральный бюджет | C101: =SUM(D101:J101) -> 0
A102: 2 | B102: областной бюджет | C102: =SUM(D102:J102) -> 0 | H102: 0
A103: 3 | B103: местный бюджет | C103: =SUM(D103:J103) -> 1100000 | F103: 0 | G103: 0 | H103: 0 | I103: 1100000 | J103: 0
A104: 4 | B104: внебюджетные источники | C104: =SUM(D104:J104) -> 0
J105: Приложение № 2.2 к муниципальной программе "Развитие образования,культуры, спорта и молодежной политики в Камышловском городском округе до 2020 года" от 30.04.2019 года № 385 г. Камышлов
A106: ПЛАН МЕРОПРИЯТИЙ по выполнению подпрограммы Развитие системы общего образования в Камышловском городском округе
A109: № строки | B109: Наименование мероприятия/ Источники расходов на финансирование | C109: Объем расходов на выполнение мероприятия за счет всех источников ресурсного обеспечения, рублей | K109: Номер строки целевых показателей, на достижение которых направлены мероприятия
C110: всего | D110: 2014 | E110: 2015 | F110: 2016 | G110: 2017 | H110: 2018 | I110: 2019 | J110: 2020
A111: 1 | B111: 2 | C111: 3 | D111: 4 | E111: 5 | F111: 6 | G111: 7 | H111: 8 | I111: 9 | J111: 10 | K111: 11
B112: ВСЕГО ПО МУНИЦИПАЛЬНОЙ ПОДПРОГРАММЕ, В ТОМ ЧИСЛЕ | C112: =SUM(C113:C116) -> 1471959263 | D112: =SUM(D113:D116) -> 180451570 | E112: =SUM(E113:E116) -> 194200884.1 | F112: =SUM(F113:F116) -> 201850866 | G112: =SUM(G113:G116) -> 203442232 | H112: =SUM(H113:H116) -> 251769799.2 | I112: =SUM(I113:I116) -> 227172171 | J112: =SUM(J113:J116) -> 213071741
A113: =A112+1 -> 1 | B113: федеральный бюджет | C113: =SUM(D113:J113) -> 698000 | D113: =D121 -> 0 | E113: =E121 -> 698000 | F113: =F121 -> 0 | G113: =G121 -> 0 | H113: =H121 -> 0 | I113: =I121 -> 0 | J113: =J121 -> 0
A114: =A113+1 -> 2 | B114: областной бюджет | C114: =SUM(D114:J114) -> 1045140570 | D114: =D122 -> 118981000 | E114: =E122 -> 130263600 | F114: =F122 -> 150290400 | G114: =G122 -> 151718753 | H114: =H122 -> 173013817.5 | I114: =I122 -> 168007400 | J114: =J122 -> 152865600
A115: =A114+1 -> 3 | B115: местный бюджет | C115: =SUM(D115:J115) -> 426120692.7 | D115: =D123 -> 61470570 | E115: =E123 -> 63239284.08 | F115: =F123 -> 51560466 | G115: =G123 -> 51723479 | H115: =H123 -> 78755981.66 | I115: =I123 -> 59164771 | J115: =J123 -> 60206141
A116: =A115+1 -> 4 | B116: внебюджетные источники | C116: =SUM(D116:J116) -> 0 | D116: =D124 -> 0 | E116: =E124 -> 0 | F116: =F124 -> 0 | G116: =G124 -> 0 | H116: =H124 -> 0 | I116: =I124 -> 0 | J116: =J124 -> 0
B119: Прочие нужды
B120: Всего по направлению "Прочие нужды", в том числе | C120: =SUM(C121:C124) -> 1471959263 | D120: =D121+D122+D123+D124 -> 180451570 | E120: =E121+E122+E123+E124 -> 194200884.1 | F120: =F121+F122+F123+F124 -> 201850866 | G120: =G121+G122+G123+G124 -> 203442232 | H120: =H121+H122+H123+H124 -> 251769799.2 | I120: =I121+I122+I123+I124 -> 227172171 | J120: =J121+J122+J123+J124 -> 213071741
A121: =A120+1 -> 1 | B121: федеральный бюджет | C121: =SUM(D121:J121) -> 698000 | D121: =D126+D131+D136+D141+D146+D151+D156+D161+D166+D171+D176+D181+D186+D191 -> 0 | E121: =E126+E131+E136+E141+E146+E151+E156+E161+E166+E171+E176+E181+E186+E191 -> 698000 | F121: =F126+F131+F136+F141+F146+F151+F156+F161+F166+F171+F176+F181+F186+F191 -> 0 | G121: =G126+G131+G136+G141+G146+G151+G156+G161+G166+G171+G176+G181+G186+G191 -> 0 | H121: =H126+H131+H136+H141+H146+H151+H156+H161+H166+H171+H176+H181+H186+H191 -> 0 | I121: =I126+I131+I136+I141+I146+I151+I156+I161+I166+I171+I176+I181+I186+I191+I196+I201+I206+I211+I216 -> 0 | J121: =J126+J131+J136+J141+J146+J151+J156+J161+J166+J171+J176+J181+J186+J191+J196+J201+J206+J211+J216 -> 0
A122: =A121+1 -> 2 | B122: областной бюджет | C122: =SUM(D122:J122) -> 1045140570 | D122: =D127+D132+D137+D142+D147+D152+D157+D162+D167+D172+D177+D182+D187+D192 -> 118981000 | E122: =E127+E132+E137+E142+E147+E152+E157+E162+E167+E172+E177+E182+E187+E192 -> 130263600 | F122: =F127+F132+F137+F142+F147+F152+F157+F162+F167+F172+F177+F182+F187+F192+F197 -> 150290400 | G122: =G127+G132+G137+G142+G147+G152+G157+G162+G167+G172+G177+G182+G187+G192+G197+G202 -> 151718753 | H122: =H127+H132+H137+H142+H147+H152+H157+H162+H167+H172+H177+H182+H187+H192+H197+H202+H212+H207 -> 173013817.5 | I122: =I127+I132+I137+I142+I147+I152+I157+I162+I167+I172+I177+I182+I187+I192+I197+I202+I207+I212+I217 -> 168007400 | J122: =J127+J132+J137+J142+J147+J152+J157+J162+J167+J172+J177+J182+J187+J192+J197+J202+J207+J212+J217 -> 152865600
A123: =A122+1 -> 3 | B123: местный бюджет | C123: =SUM(D123:J123) -> 426120692.7 | D123: =D128+D133+D138+D143+D148+D153+D158+D168+D173+D178+D183+D188+D193 -> 61470570 | E123: =E128+E133+E138+E143+E148+E153+E158+E168+E173+E178+E183+E188+E193 -> 63239284.08 | F123: =F128+F133+F138+F143+F148+F153+F158+F168+F173+F178+F183+F188+F193+F198 -> 51560466 | G123: =G128+G133+G138+G143+G148+G153+G158+G163+G168+G173+G178+G183+G188+G193+G198+G203+G208 -> 51723479 | H123: =H128+H133+H138+H143+H148+H153+H158+H163+H168+H173+H178+H183+H188+H193+H198+H203+H213+H208 -> 78755981.66 | I123: =I128+I133+I138+I143+I148+I153+I158+I163+I168+I173+I178+I183+I188+I193+I198+I203+I208+I213+I218 -> 59164771 | J123: =J128+J133+J138+J143+J148+J153+J158+J163+J168+J173+J178+J183+J188+J193+J198+J203+J208+J213+J218 -> 60206141
A124: =A123+1 -> 4 | B124: внебюджетные источники | C124: =SUM(D124:J124) -> 0 | D124: =D129+D134+D139+D144+D149+D154+D159+D169+D174+D179+D184+D189+D194 -> 0 | E124: =E129+E134+E139+E144+E149+E154+E159+E169+E174+E179+E184+E189+E194 -> 0 | F124: =F129+F134+F139+F144+F149+F154+F159+F169+F174+F179+F184+F189+F194 -> 0 | G124: =G129+G134+G139+G144+G149+G154+G159+G169+G174+G179+G184+G189+G194 -> 0 | H124: =H129+H134+H139+H144+H149+H154+H159+H169+H174+H179+H184+H189+H194 -> 0 | I124: =I129+I134+I139+I144+I149+I154+I159+I164+I169+I174+I179+I184+I189+I194+I199+I204+I209+I214+I219 -> 0 | J124: =J129+J134+J139+J144+J149+J154+J159+J169+J174+J179+J184+J189+J194 -> 0
B125: Мероприятие 1. Обеспечение государственных гарантий реализации прав на получение общедоступного и бесплатного начального общего, основного общего, среднего общего образования, создание условий для содержания детей в муниципальных общеобразовательных учреждения | C125: =SUM(C126:C129) -> 378816603 | D125: =SUM(D126:D129) -> 58882054 | E125: =SUM(E126:E129) -> 61012534.08 | F125: =SUM(F126:F129) -> 48129665 | G125: =SUM(G126:G129) -> 48479772 | H125: =SUM(H126:H129) -> 49840565.96 | I125: =SUM(I126:I129) -> 53865871 | J125: =SUM(J126:J129) -> 58606141 | K125: 13-40
A126: 1 | B126: федеральный бюджет | C126: =SUM(D126:J126) -> 0
A127: 2 | B127: областной бюджет | C127: =SUM(D127:J127) -> 0
A128: 3 | B128: местный бюджет | C128: =SUM(D128:J128) -> 378816603 | D128: 58882054 | E128: 61012534.08 | F128: 48129665 | G128: 48479772 | H128: 49840565.96 | I128: 53865871 | J128: 58606141
A129: 4 | B129: внебюджетные источники | C129: =SUM(D129:J129) -> 0
B130: Мероприятие 2. Мероприятия по укреплению и развитию материально-технической базы муниципальных общеобразовательных учреждений | C130: =SUM(C131:C134) -> 2915000 | D130: =SUM(D131:D134) -> 495000 | E130: =SUM(E131:E134) -> 0 | F130: =SUM(F131:F134) -> 0 | G130: =SUM(G131:G134) -> 420000 | H130: =SUM(H131:H134) -> 1905000 | I130: =SUM(I131:I134) -> 95000 | J130: =SUM(J131:J134) -> 0 | K130: 13-40
A131: =A130+1 -> 1 | B131: федеральный бюджет | C131: =SUM(D131:J131) -> 0
A132: =A131+1 -> 2 | B132: областной бюджет | C132: =SUM(D132:J132) -> 0
A133: 3 | B133: местный бюджет | C133: =SUM(D133:J133) -> 2915000 | D133: 495000 | G133: 420000 | H133: 1905000 | I133: 95000 | J133: 0
A134: 4 | B134: внебюджетные источники | C134: =SUM(D134:J134) -> 0
B135: Мероприятие 3. Осуществление мероприятий по организации питания в муниципальных общеобразовательных учреждений за счет средств областного бюджета | C135: =SUM(C136:C139) -> 95980000 | D135: =SUM(D136:D139) -> 11481000 | E135: =SUM(E136:E139) -> 15519000 | F135: =SUM(F136:F139) -> 13888000 | G135: =SUM(G136:G139) -> 14641000 | H135: =SUM(H136:H139) -> 18515000 | I135: =SUM(I136:I139) -> 21936000 | J135: =SUM(J136:J139) -> 0 | K135: 13-40
A136: =A135+1 -> 1 | B136: федеральный бюджет | C136: =SUM(D136:J136) -> 0
A137: =A136+1 -> 2 | B137: областной бюджет | C137: =SUM(D137:J137) -> 95980000 | D137: 11481000 | E137: 15519000 | F137: 13888000 | G137: 14641000 | H137: 18515000 | I137: 21936000 | J137: 0
A138: 3 | B138: местный бюджет | C138: =SUM(D138:J138) -> 0
A139: 4 | B139: внебюджетные источники | C139: =SUM(D139:J139) -> 0
B140: Мероприятие 4. Обеспечение бесплатного проезда детей-сирот и детей, оставшихся без попечения родителей, обучающихся в муниципальных общеобразовательных организациях, на городском, пригородном, в сельской местности на внутрирайонном транспорте (кроме такси), а также бесплатного проезда один раз в год к месту жительства и обратно к месту учебы | C140: =SUM(C141:C144) -> 235900 | D140: =SUM(D141:D144) -> 38000 | E140: =SUM(E141:E144) -> 38000 | F140: =SUM(F141:F144) -> 89600 | G140: =SUM(G141:G144) -> 70300 | H140: =SUM(H141:H144) -> 0 | I140: =SUM(I141:I144) -> 0 | J140: =SUM(J141:J144) -> 0 | K140: 13-40
A141: =A140+1 -> 1 | B141: федеральный бюджет | C141: =SUM(D141:J141) -> 0
A142: =A141+1 -> 2 | B142: областной бюджет | C142: =SUM(D142:J142) -> 235900 | D142: 38000 | E142: 38000 | F142: 89600 | G142: 70300 | I142: 0
A143: 3 | B143: местный бюджет | C143: =SUM(D143:J143) -> 0
A144: 4 | B144: внебюджетные источники | C144: =SUM(D144:J144) -> 0
B145: Мероприятие 5. Капитальный ремонт, приведение в соответствие с требованиями пожарной безопасности и санитарного законодательства зданий и помещений, в которых размещаются муниципальные общеобразовательные организации | C145: =SUM(C146:C149) -> 22096409.7 | D145: =SUM(D146:D149) -> 2719516 | E145: =SUM(E146:E149) -> 1308900 | F145: =SUM(F146:F149) -> 3430801 | G145: =SUM(G146:G149) -> 2743707 | H145: =SUM(H146:H149) -> 8693485.7 | I145: =SUM(I146:I149) -> 1600000 | J145: =SUM(J146:J149) -> 1600000 | K145: =K146+K147+K148+K149 -> 0
A146: =A145+1 -> 1 | B146: федеральный бюджет | C146: =SUM(D146:J146) -> 0
A147: =A146+1 -> 2 | B147: областной бюджет | C147: =SUM(D147:J147) -> 1184900 | D147: 626000 | E147: 558900 | J147: 0
A148: 3 | B148: местный бюджет | C148: =SUM(D148:J148) -> 20911509.7 | D148: 2093516 | E148: 750000 | F148: 3430801 | G148: 2743707 | H148: 8693485.7 | I148: 1600000 | J148: 1600000
A149: 4 | B149: внебюджетные источники | C149: =SUM(D149:J149) -> 0
B150: Мероприятие 6. Финансовое обеспечение государственных гарантий реализации прав на получение общедоступного и бесплатного дошкольного, начального общего, основного общего, среднего общего образования в муниципальных общеобразовательных организациях и финансовое обеспечение дополнительного образования детей в муниципальных общеобразовательных организациях в части финансирования расходов на оплату труда работников общеобразовательных организаций | C150: =SUM(C151:C154) -> 880329653 | D150: =SUM(D151:D154) -> 100778000 | E150: =SUM(E151:E154) -> 107138000 | F150: =SUM(F151:F154) -> 128045800 | G150: =SUM(G151:G154) -> 128784553 | H150: =SUM(H151:H154) -> 135282400 | I150: =SUM(I151:I154) -> 136847400 | J150: =SUM(J151:J154) -> 143453500
A151: =A150+1 -> 1 | B151: федеральный бюджет | C151: =SUM(D151:J151) -> 0
A152: =A151+1 -> 2 | B152: областной бюджет | C152: =SUM(D152:J152) -> 880329653 | D152: 100778000 | E152: 107138000 | F152: 128045800 | G152: 128784553 | H152: 135282400 | I152: 136847400 | J152: 143453500
A153: 3 | B153: местный бюджет | C153: =SUM(D153:J153) -> 0
A154: 4 | B154: внебюджетные источники | C154: =SUM(D154:J154) -> 0
B155: Мероприятие 7 Финансовое обеспечение государственных гарантий реализации прав на получение общедоступного и бесплатного дошкольного, начального общего, основного общего, среднего общего образования в муниципальных общеобразовательных организациях и финансовое обеспечение дополнительного образования детей в муниципальных общеобразовательных организациях в части финансирования расходов на приобретение учебников и учебных пособий, средств обучения, игр, игрушек | C155: =SUM(C156:C159) -> 51007100 | D155: =SUM(D156:D159) -> 5558000 | E155: =SUM(E156:E159) -> 5876000 | F155: =SUM(F156:F159) -> 6767000 | G155: =SUM(G156:G159) -> 7010800 | H155: =SUM(H156:H159) -> 7313100 | I155: =SUM(I156:I159) -> 9070100 | J155: =SUM(J156:J159) -> 9412100
A156: =A155+1 -> 1 | B156: федеральный бюджет | C156: =SUM(D156:J156) -> 0
A157: =A156+1 -> 2 | B157: областной бюджет | C157: =SUM(D157:J157) -> 51007100 | D157: 5558000 | E157: 5876000 | F157: 6767000 | G157: 7010800 | H157: 7313100 | I157: 9070100 | J157: 9412100
A158: 3 | B158: местный бюджет | C158: =SUM(D158:J158) -> 0
A159: 4 | B159: внебюджетные источники | C159: =SUM(D159:J159) -> 0
B160: Мероприятие 8 Поддержка муниципальных общеобразовательных организаций, расположенных на территории Свердловской области, реализующих инновационные образовательные программы | C160: =SUM(C161:C164) -> 500000 | D160: =SUM(D161:D164) -> 500000 | E160: =SUM(E161:E164) -> 0 | F160: =SUM(F161:F164) -> 0 | G160: =SUM(G161:G164) -> 0 | H160: =SUM(H161:H164) -> 0 | I160: =SUM(I161:I164) -> 0 | J160: =SUM(J161:J164) -> 0
A161: 1 | B161: федеральный бюджет | C161: =SUM(D161:J161) -> 0
A162: 2 | B162: областной бюджет | C162: =SUM(D162:J162) -> 500000 | D162: 500000
A163: 3 | B163: местный бюджет | C163: =SUM(D163:J163) -> 0
A164: 4 | B164: внебюджетные источники | C164: =SUM(D164:J164) -> 0
B165: Мероприятие 9 Обеспечение доступности приоритетных объектов и услуг в приоритетных сферах жизнедеятельности инвалидов и других маломобильных групп населения | C165: =SUM(C166:C169) -> 726750 | D165: =SUM(D166:D169) -> 0 | E165: =SUM(E166:E169) -> 726750 | F165: =SUM(F166:F169) -> 0 | G165: =SUM(G166:G169) -> 0 | H165: =SUM(H166:H169) -> 0 | I165: =SUM(I166:I169) -> 0 | J165: =SUM(J166:J169) -> 0
A166: 1 | B166: федеральный бюджет | C166: =SUM(D166:J166) -> 0
A167: 2 | B167: областной бюджет | C167: =SUM(D167:J167) -> 0
A168: 3 | B168: местный бюджет | C168: =SUM(D168:J168) -> 726750 | E168: 726750 | F168: 0 | G168: 0
A169: 4 | B169: внебюджетные источники | C169: =SUM(D169:J169) -> 0
B170: Мероприятие 10 Приобретение и (или) замена автобусов для подвоза обучающихся в муниципальные общеобразовательные организации, оснащению аппаратурой спутниковой навигации ГЛОНАСС, тахографами используемого парка автобусов | C170: =SUM(C171:C174) -> 1384500 | D170: =SUM(D171:D174) -> 0 | E170: =SUM(E171:E174) -> 1384500 | F170: =SUM(F171:F174) -> 0 | G170: =SUM(G171:G174) -> 0 | H170: =SUM(H171:H174) -> 0 | I170: =SUM(I171:I174) -> 0 | J170: =SUM(J171:J174) -> 0
A171: 1 | B171: федеральный бюджет | C171: =SUM(D171:J171) -> 0
A172: 2 | B172: областной бюджет | C172: =SUM(D172:J172) -> 634500 | E172: 634500
A173: 3 | B173: местный бюджет | C173: =SUM(D173:J173) -> 750000 | E173: 750000
A174: 4 | B174: внебюджетные источники | C174: =SUM(D174:J174) -> 0
B175: Мероприятие 11 Создание в общеобразовательных организациях условий для инклюзивного образования детей-инвалидов | C175: =SUM(C176:C179) -> 299200 | D175: =SUM(D176:D179) -> 0 | E175: =SUM(E176:E179) -> 299200 | F175: =SUM(F176:F179) -> 0 | G175: =SUM(G176:G179) -> 0 | H175: =SUM(H176:H179) -> 0 | I175: =SUM(I176:I179) -> 0 | J175: =SUM(J176:J179) -> 0
A176: 1 | B176: федеральный бюджет | C176: =SUM(D176:K176) -> 0
A177: 2 | B177: областной бюджет | C177: =SUM(D177:K177) -> 299200 | E177: 299200
A178: 3 | B178: местный бюджет | C178: =SUM(D178:K178) -> 0
A179: 4 | B179: внебюджетные источники | C179: =SUM(D179:K179) -> 0
B180: Мероприятие 12 Реализация мероприятий по обеспечению доступности в приоритетных сферах жизнедеятельности инвалидов и других маломобильных групп населения за счет межбюджетных трансфертов из федерального бюджета | C180: =SUM(C181:C184) -> 698000 | D180: =SUM(D181:D184) -> 0 | E180: =SUM(E181:E184) -> 698000 | F180: =SUM(F181:F184) -> 0 | G180: =SUM(G181:G184) -> 0 | H180: =SUM(H181:H184) -> 0 | I180: =SUM(I181:I184) -> 0 | J180: =SUM(J181:J184) -> 0
A181: 1 | B181: федеральный бюджет | C181: =SUM(D181:J181) -> 698000 | E181: 698000
A182: 2 | B182: областной бюджет | C182: =SUM(D182:J182) -> 0
A183: 3 | B183: местный бюджет | C183: =SUM(D183:J183) -> 0
A184: 4 | B184: внебюджетные источники | C184: =SUM(D184:J184) -> 0
B185: Мероприятие 13 Оказание государственной потдержки на конкурсной основе муниципальным образовательным организациям, реализующим программы патриотического воспитания | C185: =SUM(C186:C189) -> 200000 | D185: =SUM(D186:D189) -> 0 | E185: =SUM(E186:E189) -> 200000 | F185: =SUM(F186:F189) -> 0 | G185: =SUM(G186:G189) -> 0 | H185: =SUM(H186:H189) -> 0 | I185: =SUM(I186:I189) -> 0 | J185: =SUM(J186:J189) -> 0
A186: 1 | B186: федеральный бюджет | C186: =SUM(D186:J186) -> 0
A187: 2 | B187: областной бюджет | C187: =SUM(D187:J187) -> 200000 | E187: 200000
A188: 3 | B188: местный бюджет | C188: =SUM(D188:J188) -> 0
A189: 4 | B189: внебюджетные источники | C189: =SUM(D189:J189) -> 0
B190: Мероприятие 14 Организация, проведение и участие в физкультурно-оздоровительных мероприятиях разного уровня | C190: =SUM(C191:C194) -> 0 | D190: =SUM(D191:D194) -> 0 | E190: =SUM(E191:E194) -> 0 | F190: =SUM(F191:F194) -> 0 | G190: =SUM(G191:G194) -> 0 | H190: =SUM(H191:H194) -> 0 | I190: =SUM(I191:I194) -> 0 | J190: =SUM(J191:J194) -> 0
A191: 1 | B191: федеральный бюджет | C191: =SUM(D191:J191) -> 0
A192: 2 | B192: областной бюджет | C192: =SUM(D192:J192) -> 0
A193: 3 | B193: местный бюджет | C193: =SUM(D193:J193) -> 0 | F193: 0
A194: 4 | B194: внебюджетные источники | C194: =SUM(D194:J194) -> 0
B195: Мероприятие 15 Поддержка муниципальных общеобразовательных организаций, расположенных на территории Свердловской области, имеющих статус региональной инновационной площадки в Свердловской области | C195: =SUM(C196:C199) -> 1500000 | D195: =SUM(D196:D199) -> 0 | E195: =SUM(E196:E199) -> 0 | F195: =SUM(F196:F199) -> 1500000 | G195: =SUM(G196:G199) -> 0 | H195: =SUM(H196:H199) -> 0 | I195: =SUM(I196:I199) -> 0 | J195: =SUM(J196:J199) -> 0
A196: =A195+1 -> 1 | B196: федеральный бюджет | C196: =SUM(D196:J196) -> 0
A197: =A196+1 -> 2 | B197: областной бюджет | C197: =SUM(D197:J197) -> 1500000 | F197: 1500000
A198: 3 | B198: местный бюджет | C198: =SUM(D198:J198) -> 0 | D198: 0
A199: 4 | B199: внебюджетные источники | C199: =SUM(D199:J199) -> 0
B200: Мероприятие 16 Мероприятия, направленные на устранение нарушений, выявленных органами государственного надзора в результате проверок в муниципальных общеобразовательных организациях | C200: =SUM(C201:C204) -> 10060600 | D200: =SUM(D201:D204) -> 0 | E200: =SUM(E201:E204) -> 0 | F200: =SUM(F201:F204) -> 0 | G200: =SUM(G201:G204) -> 1292100 | H200: =SUM(H201:H204) -> 6500000 | I200: =SUM(I201:I204) -> 2268500 | J200: =SUM(J201:J204) -> 0
A201: =A200+1 -> 1 | B201: федеральный бюджет | C201: =SUM(D201:J201) -> 0
A202: =A201+1 -> 2 | B202: областной бюджет | C202: =SUM(D202:J202) -> 1212100 | G202: 1212100
A203: 3 | B203: местный бюджет | C203: =SUM(D203:J203) -> 8848500 | D203: 0 | G203: 80000 | H203: 6500000 | I203: 2268500
A204: 4 | B204: внебюджетные источники | C204: =SUM(D204:J204) -> 0
B205: Мероприятие 17 Обеспечение мероприятий по оборудованию спортивных площадок в муниципальных общеобразовательных организациях | C205: =SUM(C206:C209) -> 23633847.5 | D205: =SUM(D206:D209) -> 0 | E205: =SUM(E206:E209) -> 0 | F205: =SUM(F206:F209) -> 0 | G205: =SUM(G206:G209) -> 0 | H205: =SUM(H206:H209) -> 23633847.5 | I205: =SUM(I206:I209) -> 0 | J205: =SUM(J206:J209) -> 0
A206: =A205+1 -> 1 | B206: федеральный бюджет | C206: =SUM(D206:J206) -> 0
A207: =A206+1 -> 2 | B207: областной бюджет | C207: =SUM(D207:J207) -> 11816917.5 | G207: 0 | H207: 11816917.5
A208: 3 | B208: местный бюджет | C208: =SUM(D208:J208) -> 11816930 | D208: 0 | G208: 0 | H208: 11816930
A209: 4 | B209: внебюджетные источники | C209: =SUM(D209:J209) -> 0
B210: Мероприятие 18 Прочие межбюджетные трансферты, передаваемые бюджетам городских округов. Обеспечение дополнительных гарантий по социальной поддержке детей-сирот и детей, оставшихся без попечения родителей, лиц из числа детей-сирот и детей, оставшихся без попечения родителей, лиц, потерявших в период обучения обоих родителей или единственного родителя, обучающихся в муниципальных образовательных организациях. | C210: =SUM(C211:C214) -> 240300 | D210: =SUM(D211:D214) -> 0 | E210: =SUM(E211:E214) -> 0 | F210: =SUM(F211:F214) -> 0 | G210: =SUM(G211:G214) -> 0 | H210: =SUM(H211:H214) -> 86400 | I210: =SUM(I211:I214) -> 153900 | J210: =SUM(J211:J214) -> 0
A211: =A210+1 -> 1 | B211: федеральный бюджет | C211: =SUM(D211:J211) -> 0
A212: =A211+1 -> 2 | B212: областной бюджет | C212: =SUM(D212:J212) -> 240300 | G212: 0 | H212: 86400 | I212: 153900
... 491 more rows

Sheet Лист3
